Cogmind - Beta 14 @@@ ROGUE MODE // 2025.03.17 @ 15:26:28 Player: G4-R3D Result: Destroyed by Y-45 Defender with Heavy Assault Rifle Performance ------------- Evolutions (1) 500 Regions Visited (3) 600 Robots Destroyed (6) 30 Value Destroyed (42) 42 Prototype IDs (1) 20 Alien Tech Used (0) 0 Bonus (0) 0 TOTAL SCORE: 1192 Bonus ------- None Cogmind --------- Core Integrity 0/400 Matter 300/300 Energy 100/100 System Corruption 1% Temperature Cool (0) Movement Core (50) Location -9/Materials Parts ------- > --- POWER (1) -------- (None) > --- PROPULSION (3) --- (None) > --- UTILITY (3) ------ Improved Terrain Scan Processor > --- WEAPON (2) ------- (None) > --- INVENTORY (5) ---- Small Storage Unit Weight Redist. System Experimental Sensor Array Light Armor Plating Small Laser Peak State ------------ > --- POWER ------------ (None) > --- PROPULSION ------- Flight Unit > --- UTILITY ---------- Improved Terrain Scanner Improved Terrain Scan Processor Hacking Suite > --- WEAPON ----------- Improved EM Shotgun > --- INVENTORY -------- Small Storage Unit Experimental Sensor Array Light Armor Plating Small Laser [Rating: 14] Favorites ----------- Power Light Ion Engine Engine Light Ion Engine Propulsion Flight Unit Flight Unit Flight Unit Utility Improved Terrain Scanner Device Improved Terrain Scanner Processor Improved Terrain Scan Processor Hackware Hacking Suite Weapon Light Assault Rifle Energy Gun Small Laser Ballistic Gun Light Assault Rifle Build | -11 -10 -10 -9 ------- Run | Yrd Mat Min Mat Slots Evolved 2 | . . . 2 Power . | . . . . Propulsion 1 | . . . 1 Utility 1 | . . . 1 Weapon . | . . . . Parts Attached 14 | 2 3 6 3 Power 1 | . 1 . . Engine 1 | . 1 . . Core . | . . . . Reactor . | . . . . Propulsion 2 | . 1 1 . Treads . | . . . . Leg . | . . . . Wheel . | . . . . Hover . | . . . . Flight 2 | . 1 1 . Utility 7 | 1 1 3 2 Device 4 | 1 1 1 1 Storage . | . . . . Processor 2 | . . 2 . Hackware 1 | . . . 1 Protection . | . . . . Artifact . | . . . . Weapon 4 | 1 . 2 1 Energy Gun 2 | . . 1 1 Energy Cannon . | . . . . Ballistic Gun 2 | 1 . 1 . Ballistic Cannon . | . . . . Launcher . | . . . . Special Weapon . | . . . . Impact Weapon . | . . . . Slashing Weapon . | . . . . Piercing Weapon . | . . . . Special Melee Weapon . | . . . . Unidentified Prototypes 1 | . . . 1 Parts Lost 8 | . 3 . 5 Power 1 | . 1 . . Propulsion 2 | . 1 . 1 Utility 4 | . 1 . 3 Weapon 1 | . . . 1 Highest Loss Streak 5 | . 3 . 5 To Critical Strikes . | . . . . Average Slot Usage (%) 42 | . 25 53 41 Flight 4 | . . 5 7 Device 12 | . 11 14 8 Processor 4 | . . 5 11 Hackware 1 | . . . 8 Energy Gun 7 | . . 14 5 Ballistic Gun 10 | . 13 14 . Peak Build Rating 14 | 2 6 10 14 Average Rating 5 | 1 2 7 10 On Entrance 3 | . 2 3 10 Naked Turns . | . . . . Heaviest Build 4 | 2 4 3 4 Greatest Support 4 | 3 4 4 4 Greatest Overweight (x) 1 | . 1 . . Average Overweight (x) . | . . . . Largest Inventory Capacity 5 | 5 5 5 5 Average Capacity 5 | 5 5 5 5 Most Carried 5 | . 4 5 5 Average Carried 2 | . 1 3 4 Final Capacity 5 | 5 5 5 5 Final Carried 5 | . 4 4 5 Class Distribution -------------------- 100% | Mutant Dominant Class ---------------- Mutant | -10/Materials Mutant | -10/Mines Mutant | -9/Materials Resources | -11 -10 -10 -9 ----------- Run | Yrd Mat Min Mat Matter Collected 342 | 219 29 78 16 Remotely . | . . . . Salvage Created 195 | 20 18 141 16 Parts 13 | 2 1 7 3 Haulers Intercepted . | . . . . Recyclers Shooed 2 | . . 2 . Parts Field Recycled . | . . . . Retrieved Matter . | . . . . Parts Self-Destructed . | . . . . Prevented . | . . . . Kills | -11 -10 -10 -9 ------- Run | Yrd Mat Min Mat Combat Hostiles Destroyed 1 | . 1 . . Guns 1 | . 1 . . Classes Destroyed 4 | 1 1 2 . Builder 1 | . . 1 . Tunneler 3 | 1 . 1 1 Recycler 1 | . . 1 . Swarmer 1 | . 1 . . Best Kill Streak 1 | 1 1 1 1 Combat Bots Only 1 | . 1 . . Max Kills in Single Turn 1 | 1 1 1 1 Gunslinging . | . . . . Exploded . | . . . . Melee . | . . . . Uniques/NPCs Destroyed . | . . . . Combat | -11 -10 -10 -9 -------- Run | Yrd Mat Min Mat Hostile Shots Fired 136 | . 60 4 72 Missed 61 | . 28 4 29 Damage Taken 882 | . 312 . 570 Core 564 | . 164 . 400 Absorbed by Shields . | . . . . Core Remaining (%) 67 | 100 . 34 . Volleys Fired 32 | 11 5 15 1 Largest 2 | 1 1 2 1 Hottest 60 | 20 20 60 45 Shots Fired 47 | 11 5 30 1 Gun 47 | 11 5 30 1 Cannon . | . . . . Launcher . | . . . . Special . | . . . . Kinetic 31 | 11 5 15 . Thermal 15 | . . 15 . Explosive . | . . . . Electromagnetic 1 | . . . 1 Robot Hit Streak 5 | 3 4 5 . Robot Miss Streak 3 | 3 3 2 3 Penetration Max . | . . . . Secondary Targets . | . . . . Shots Hit Robots 25 | 6 2 17 . Core Hits 9 | 2 1 5 1 Critical Kills . | . . . . Critical Parts Destroyed . | . . . . Critical Strikes . | . . . . Melee Attacks . | . . . . Impact . | . . . . Slashing . | . . . . Piercing . | . . . . Sneak Attacks . | . . . . Combat Hostiles . | . . . . Follow-up Attacks . | . . . . Damage Inflicted 251 | 47 17 164 23 Guns 251 | 47 17 164 23 Cannons . | . . . . Explosions . | . . . . Melee . | . . . . Ramming . | . . . . Kinetic 114 | 47 17 50 . Thermal 114 | . . 114 . Explosive . | . . . . Electromagnetic 23 | . . . 23 Impact . | . . . . Slashing . | . . . . Piercing . | . . . . Highest Corruption 1 | . . . 1 Average Corruption 1 | . . . 1 Corruption Purged . | . . . . Corruption Blocked . | . . . . Overload Shots . | . . . . Overflow Damage . | . . . . Projectiles . | . . . . Explosions . | . . . . Melee . | . . . . Knockbacks . | . . . . Impact . | . . . . Kinetic . | . . . . Secondary . | . . . . Self-Inflicted Damage . | . . . . Shots . | . . . . Rammed . | . . . . Targets Rammed . | . . . . Kicked . | . . . . Crushed . | . . . . Highest Temperature 20 | . . 20 8 Average Temperature 10 | . . 10 8 Received Heat Transfer 360 | . 105 . 255 Siege Activations . | . . . . Robots Corrupted . | . . . . Combat Hostiles . | . . . . Parts Fried . | . . . . Impact Corruptions . | . . . . Robots Melted . | . . . . Combat Hostiles . | . . . . Parts Melted . | . . . . Heat Transferred 250 | . . 250 . Parts Sabotaged . | . . . . Parts Stolen . | . . . . Parts Stripped . | . . . . Power Chain Reactions . | . . . . Alert | -11 -10 -10 -9 ------- Run | Yrd Mat Min Mat Peak Influence 218 | 5 218 216 139 Initial 83 | . 3 81 83 Average 86 | . 54 122 89 Maximum Alert Level 1 | . 1 1 . Low Security (%) 91 | 100 90 86 100 Level 1 8 | . 9 13 . Level 2 . | . . . . Level 3 . | . . . . Level 4 . | . . . . Level 5 . | . . . . High Security . | . . . . Max Security . | . . . . Squads Dispatched 7 | . 3 1 3 Investigation 4 | . 1 1 2 Extermination . | . . . . Reinforcement 3 | . 2 . 1 Assault . | . . . . Garrison . | . . . . Intercept . | . . . . Searches Triggered . | . . . . Construction Impeded . | . . . . Haulers Reinforced . | . . . . Active Scanning Responses . | . . . . Cargo Convoy Interrupts . | . . . . Stealth | -11 -10 -10 -9 --------- Run | Yrd Mat Min Mat Distress Signals 4 | . 3 . 1 Communications Jammed . | . . . . Distress Signals . | . . . . Times Spotted 45 | . 17 6 22 Peak Tracking Total 12 | . 12 5 11 Tactical Retreats 8 | . 2 3 3 Traps | -11 -10 -10 -9 ------- Run | Yrd Mat Min Mat Traps Triggered . | . . . . Indirectly . | . . . . Trap Hack Attempts . | . . . . Triggered . | . . . . Disarmed . | . . . . Reprogrammed . | . . . . Reused . | . . . . Traps Extracted . | . . . . Installed . | . . . . Triggered . | . . . . Machines | -11 -10 -10 -9 ---------- Run | Yrd Mat Min Mat Machines Disabled . | . . . . Max in Single Turn . | . . . . Machines Repaired . | . . . . Machines Dismantled . | . . . . Machines Sabotaged . | . . . . Overloaded Fab Kills . | . . . . Hacking | -11 -10 -10 -9 --------- Run | Yrd Mat Min Mat Machines Accessed 10 | . 4 1 5 Terminals 8 | . 3 . 5 Fabricators . | . . . . Repair Stations . | . . . . Recycling Units 1 | . 1 . . Scanalyzers . | . . . . Garrison Access . | . . . . Total Hacks 31 | . 13 1 17 Successful 20 | . 8 1 11 Failed 11 | . 5 . 6 Catastrophic 1 | . 1 . . Database Lockouts . | . . . . Manual 24 | . 12 . 12 Terminals 29 | . 12 . 17 Fabricators . | . . . . Repair Stations . | . . . . Recycling Units 1 | . 1 . . Scanalyzers . | . . . . Garrison Access . | . . . . Terminal Hacks 13 | . 6 1 6 Part Schematic 1 | . . . 1 Robot Analysis 3 | . 2 . 1 Open Door 1 | . . 1 . Terminal Index 1 | . 1 . . Recycling Unit Index 1 | . 1 . . Alert Level 1 | . . . 1 Unreport Threat 1 | . . . 1 Zone Layout 4 | . 2 . 2 Fabricator Hacks . | . . . . Repair Station Hacks . | . . . . Recycling Unit Hacks . | . . . . Scanalyzer . | . . . . Garrison Access Hacks . | . . . . Unauthorized Hacks 7 | . 2 . 5 Terminals 6 | . 1 . 5 Botnet 6 | . 1 . 5 Fabricators . | . . . . Repair Stations . | . . . . Recycling Units 1 | . 1 . . Tunnel 1 | . 1 . . Scanalyzers . | . . . . Garrison Access . | . . . . Data Cores Recovered . | . . . . Used . | . . . . Hacking Detections 8 | . 3 . 5 Full Trace Events 5 | . 1 . 4 Feedback Events 1 | . . . 1 Corruption 1 | . . . 1 Feedback Blocked . | . . . . Robot Schematics Acquired . | . . . . Robots Built . | . . . . Authchips . | . . . . Time . | . . . . Total Robot Build Rating . | . . . . Part Schematics Acquired 1 | . . . 1 Parts Built . | . . . . Authchips . | . . . . Time . | . . . . Total Part Build Rating . | . . . . Parts Repaired . | . . . . Time . | . . . . Parts Recycled . | . . . . Recycled Matter . | . . . . Retrieved Matter . | . . . . Retrieved Components . | . . . . Parts Scanalyzed . | . . . . Part Schematics Acquired . | . . . . Parts Damaged . | . . . . Bothacking | -11 -10 -10 -9 ------------ Run | Yrd Mat Min Mat Used RIF Installer . | . . . . Robots Hacked . | . . . . Non-combat . | . . . . Combat . | . . . . Robot Hacks Applied . | . . . . Relay Couplers Released . | . . . . Fabnet Peak Effective % . | . . . . Robots Rewired . | . . . . Allies Hacked . | . . . . Hacks Repelled . | . . . . Allies | -11 -10 -10 -9 -------- Run | Yrd Mat Min Mat Total Allies . | . . . . Largest Group . | . . . . Highest-Rated Group . | . . . . Highest-Rated Ally . | . . . . Total Orders . | . . . . Ally Attacks . | . . . . Total Damage . | . . . . Kills . | . . . . Allies Corrupted . | . . . . Allies Melted . | . . . . Intel | -11 -10 -10 -9 ------- Run | Yrd Mat Min Mat Robot Analysis Total 3 | . 2 . 1 Derelict Logs Recovered 2 | . . 2 . Drone Launches . | . . . . Drone Recoveries . | . . . . Exploration | -11 -10 -10 -9 ------------- Run | Yrd Mat Min Mat Turns Passed 603 | 48 178 258 119 Spaces Moved 965 | 50 218 447 250 Core 567 | 50 210 224 83 Treads . | . . . . Legs . | . . . . Wheels . | . . . . Hover . | . . . . Flight 398 | . 8 223 167 Fastest Speed 40 | 50 40 40 40 Average Speed 46 | 50 51 45 43 Slowest Speed 100 | 50 100 50 50 Overloaded Moves . | . . . . Propulsion Burnouts . | . . . . Robots Hopped 12 | . 1 2 9 Cave-ins Triggered . | . . . . Exploration Rate (%) 41 | 3 37 89 35 Regions Visited 3 Branch Regions 1 Pre-discovered Areas 2 | . 1 1 . Known Exits Taken . | . . . . Unknown Exits Taken 3 | 1 1 1 . Scrap Searched 1 | . . 1 . Spaces Dug . | . . . . Terrain Destroyed . | . . . . Melee . | . . . . Projectile . | . . . . AOE . | . . . . Terrain Rammed . | . . . . Walls Destroyed . | . . . . Machines Disabled . | . . . . Actions | -11 -10 -10 -9 --------- Run | Yrd Mat Min Mat Total 1062 | 62 277 473 250 Wait 53 | . 49 2 2 Move 940 | 49 215 442 234 Hop 10 | . 1 2 7 Pick Up 7 | . 3 3 1 Fast Attach 10 | 2 3 3 2 Attach 3 | . . 2 1 Detach 3 | . 1 1 1 Swap 1 | . . 1 . Drop 3 | . . 2 1 Fire 32 | 11 5 15 1 Melee . | . . . . Ram . | . . . . Kick . | . . . . Crush . | . . . . Escape Stasis . | . . . . Rewire . | . . . . Trap . | . . . . Miscellaneous . | . . . . Route ------- -11/Scrapyard -10/Materials (discovered 2 exits: *Mat / *Min) -10/Mines (discovered 2 exits: *Mat x2) -9/Materials (discovered 2 exits: [*Mat] / [*Min]) History --------- Turn | Location | Event 7 | -11/Scrapyard | Discovered new exit (range 16) 49 | -11/Scrapyard | Entered Materials 163 | -10/Materials | Discovered new exit (range 14) 190 | -10/Materials | Discovered new exit (range 5) 220 | -10/Materials | Core integrity fell below 50% 227 | -10/Materials | Entered Mines 254 | -10/Mines | Met a Derelict bent on vengeance 256 | -10/Mines | Lost 3 parts (1p1n1u) 276 | -10/Mines | Found a damaged Exp. Sensor Array with a note attached 278 | -10/Mines | Found Prototype Device 306 | -10/Mines | Build established: Mutant 362 | -10/Mines | Learned location of Zion (-7) 378 | -10/Mines | Discovered new exit (range 15) 403 | -10/Mines | Met a Derelict shopkeep closing up shop 417 | -10/Mines | Learned Materials garrison access intel 481 | -10/Mines | Discovered new exit (range 10) 485 | -10/Mines | Entered Materials 485 | -9/Materials | Evolved 2 slots: Propulsion x1, Utility x1 523 | -9/Materials | Discovered new exit (range 16) 563 | -9/Materials | Discovered new exit (range 15) 590 | -9/Materials | Core integrity fell below 50% 601 | -9/Materials | Core integrity fell below 20% 604 | -9/Materials | Destroyed by Y-45 Defender with Heavy Assault Rifle Last Messages --------------- Schematic downloaded. >>Analysis(Y-45 Defender) Downloading analysis... Y-45 Defender Tier: 2 Y-series armored sentries are equipped with a mix of thermal and kinetic weaponry. The Y-45 guards important locations and vital machinery, and remains at its station unless they identify a hostile robot or are alerted to the presence of one nearby. >>Alert(Check) Current Alert Level: Low Security 00578_ ALERT: Suspicious activity at Terminal M002. Dispatching Investigation squad. 00591_ Hacking Suite destroyed. 00594_ Imp. Terrain Scanner destroyed. 00600_ Y-45 Defender suffers critical hit (Burn). 00603_ T-07 Excavator is excavating. Map ----- +----------------------------------------------------+ | #??????# ????????????? #?????#! | | #??????# ????????????? #?????# #### | | #??????# ????????????? #?????# #??? | | ########## ????? ?#???#? #?????## #??? | | + # ???????# ????#############?##### #??? | | # """ ##????+??# ???????#""|"!""#?????# #??? | | # """ #????????# ??????# "|"!" #?????# #??? | | + """ #???## ### ####### ####### #### | | # ##??# | | # #?### < | | ##########???# | | ##?????####??#??????# ### g# ##+########### | | ##?#??#?# ?????????????# ######### # | | #??###?## ??? ?????#???# #???????# # | | #?#??#?## "?"?"? ???????# #???#???# "" !# | | #?????### ""????????????# ##??????# "T # | | ##?##??##?"??"????#?????# #???????# "" #[/! | | ########????? ???#??#??## #???????# #[/ ! | | # """ #####?#########??#u #???????######## ! | | # """ #??#??# !#??# ##?????????#?#?# | | # """ #??#??# """ #??#u #??????????????# | | # #?###?# """ =#??# #??#??????#????# """ | | # = #??#??# """ #?## #??#???????#???# """ | | # ?####?# #### #??????????????# """ | | ###/#############+####### #??#?#?????????# | | YY @ ###????????#???###### | | Y #???#?????#??#??????## | | #??#????#????????????? | | #################+######u#####??????????????????#? | | ?? ? ??????#?# #? ??????????????????????# | | ?? ""????????## ## u ###?????#??????????????? | | "???????#?????# """" # #?#??#?????#???????#???? | | ?????? ??#????# """" ## #??#???????????????????# | | ? ?? ? ??#????# """" ######???????????????????#??? | | ??? ?????#??## ##???????????????????????#??? | | #???#????#????########?????????????????#?????????? | | ?#???##?????????#?#???#????#??#??????????????????# | | ???#?????#?#?????#?#?????????????????????????????# | | #????#????##??????#???????????#??????????????????# | | ???????###???????????????????????????????????#???# | | ???????#??????????????????????????????#?????#??#?# | | ??#?????????????????????????????????????#????????# | | ????????????????????????#?????????????#??????????# | | ?????????????????????#?????????????????????????#?# | | ???????????????????#????????????????????????????## | | ?????????????????????????????????????????????????# | | ?????????????????????????????????????????#??????#? | | ?????????????????????????????????????????????????? | | ?????????????????????????????????????????????????? | | ?????????????????????????????????????????????#???? | +----------------------------------------------------+ Best States ------------- Heat Dissipation 28 Energy Generation 10 Energy Capacity 125 Matter Stores 300 Matter Capacity 300 Sight Range 16 Terrain Scan Range 16 Terrain Scan Density 110 Evasion (%) 62 Offensive Hacking 10 Item Schematics ----------------- VTOL Module | -9/Materials | Hacked Robot Schematics ------------------ None Fabricated ------------ Nothing Alien Tech Used ----------------- None Achievements -------------- None Challenges ------------ None Game ------ Seed TractorMicroRegenerator Manual? 0 Play Time 00:12:34 Cumulative 153.1 hours Start 2025.03.17 @ 15:14:04 End 2025.03.17 @ 15:26:28 Sessions 1 Manual Loads 0 Difficulty Rogue Special Mode None Game No. 77 Rogue 77 Adventurer 0 Explorer 0 Win Type - Total 9 Types 4/0/3/0/2/0/0/0/0 Lore% 68 Gallery% 65 Achievement% 59 Wizard Run 0 Options --------- Layout 1 ASCII 0 Keyboard 0 Movement Numpad Keybinds 0 Fullscreen 1 Font 24/Smallcaps Map View 50x35 Zoom Use 0% Tactical HUD 1 Map Filters NONE Filters NONE Steam 1 RUN: 16124392-a8c1-484c-9c28-16339e19d44f